Cogmind - Beta 9.3 *** ADVENTURER MODE // 2020.01.02 @ 19:29:00 // Winter2019/RPGLIKE Player: almost Result: Destroyed by as-56562 with Assembled Rifle Performance ------------- Evolutions (0) 0 Regions Visited (4) 800 Robots Destroyed (14) 70 Value Destroyed (227) 227 Prototype IDs (0) 0 Alien Tech Used (0) 0 Bonus (-12) -12 TOTAL SCORE: 1085 Bonus ------- Friendly Fire -12 Cogmind --------- Core Integrity 0/600 Matter 300/300 Energy 248/250 System Corruption 0% Temperature Cool (1) Movement Treading (160) Location -9/Mines Parts ------- > --- POWER (1) -------- Ion Engine > --- PROPULSION (1) --- Light Treads > --- UTILITY (4) ------ Heat Sink Improved Heat Sink Improved Signal Interpreter Tractor Beam > --- WEAPON (1) ------- Assault Rifle > --- INVENTORY (4) ---- Protomatter-19 Light Treads Aluminum Leg Peak State ------------ > --- POWER ------------ Ion Engine > --- PROPULSION ------- Light Treads > --- UTILITY ---------- Heat Sink Improved Heat Sink Improved Signal Interpreter Tractor Beam > --- WEAPON ----------- Assault Rifle > --- INVENTORY -------- Protomatter Light Treads Aluminum Leg [Rating: 10] Favorites ----------- Power Light Ion Engine Engine Light Ion Engine Propulsion Light Treads Treads Light Treads Utility Improved Signal Interpreter Device Improved Heat Sink Processor Improved Signal Interpreter Weapon Assault Rifle Ballistic Gun Assault Rifle Build | -11 -10 -10 -10 -9 ------- Run | Scr Mat Min Exi Min Slots Evolved 3 | . . . . 3 Power . | . . . . . Propulsion . | . . . . . Utility 3 | . . . . 3 Weapon . | . . . . . Parts Attached 8 | 3 1 . . 4 Power 2 | 1 . . . 1 Engine 2 | 1 . . . 1 Core . | . . . . . Reactor . | . . . . . Propulsion 1 | 1 . . . . Treads 1 | 1 . . . . Leg . | . . . . . Wheel . | . . . . . Hover . | . . . . . Flight . | . . . . . Utility 4 | . 1 . . 3 Device 3 | . . . . 3 Storage . | . . . . . Processor 1 | . 1 . . . Hackware . | . . . . . Protection . | . . . . . Artifact . | . . . . . Weapon 1 | 1 . . . . Energy Gun . | . . . . . Energy Cannon . | . . . . . Ballistic Gun 1 | 1 . . . . Ballistic Cannon . | . . . . . Launcher . | . . . . . Special Weapon . | . . . . . Impact Weapon . | . . . . . Slashing Weapon . | . . . . . Piercing Weapon . | . . . . . Special Melee Weapon . | . . . . . Unidentified Prototypes . | . . . . . Parts Lost . | . . . . . Power . | . . . . . Propulsion . | . . . . . Utility . | . . . . . Weapon . | . . . . . Highest Loss Streak . | . . . . . Average Slot Usage (%) 91 | . 86 100 100 90 Engine 20 | . 25 25 25 16 Treads 20 | . 25 25 25 16 Device 13 | . . . . 24 Processor 16 | . 11 25 25 16 Ballistic Gun 20 | . 25 25 25 16 Naked Turns . | . . . . . Heaviest Build 10 | 5 5 5 5 10 Greatest Support 20 | 20 20 20 20 20 Greatest Overweight (x) . | . . . . . Average Overweight (x) . | . . . . . Largest Inventory Capacity 4 | . . . . 4 Average Capacity 1 | . . . . 3 Most Carried 4 | . . . . 4 Average Carried 1 | . . . . 2 Final Capacity 4 | . . . . 4 Final Carried 3 | . . . . 3 Class Distribution -------------------- 100% | Mutant Dominant Class ---------------- Mutant | -10/Materials Mutant | -10/Mines Mutant | -10/Exiles Mutant | -9/Mines Resources | -11 -10 -10 -10 -9 ----------- Run | Scr Mat Min Exi Min Matter Collected 485 | 230 39 10 . 206 Remotely 25 | . . . . 25 Salvage Created 284 | . 70 . . 214 Parts 31 | . 3 . . 28 Haulers Intercepted . | . . . . . Recyclers Shooed . | . . . . . Parts Field Recycled . | . . . . . Retrieved Matter . | . . . . . Parts Self-Destructed . | . . . . . Prevented . | . . . . . Kills | -11 -10 -10 -10 -9 ------- Run | Scr Mat Min Exi Min Combat Hostiles Destroyed 10 | . 3 . . 7 Guns 10 | . 3 . . 7 Classes Destroyed 5 | . 1 . . 4 Worker 2 | . . . . 2 Tunneler 2 | . . . . 2 Swarmer 6 | . 3 . . 3 Grunt 3 | . . . . 3 Brawler 1 | . . . . 1 Best Kill Streak 3 | . 2 . . 3 Combat Bots Only 3 | . 2 . . 3 Max Kills in Single Turn 1 | . 1 . . 1 Gunslinging . | . . . . . Exploded . | . . . . . Melee . | . . . . . Uniques/NPCs Destroyed . | . . . . . Combat | -11 -10 -10 -10 -9 -------- Run | Scr Mat Min Exi Min Damage Taken 812 | . 213 . . 599 Core 655 | . 169 . . 486 Absorbed by Shields . | . . . . . Redirected to Core 482 | . 123 . . 359 Core Remaining (%) 100 | 100 . . . . Volleys Fired 71 | . 13 . . 58 Largest 1 | . 1 . . 1 Hottest 20 | . 20 . . 20 Shots Fired 71 | . 13 . . 58 Gun 71 | . 13 . . 58 Cannon . | . . . . . Launcher . | . . . . . Special . | . . . . . Kinetic 71 | . 13 . . 58 Thermal . | . . . . . Explosive . | . . . . . Electromagnetic . | . . . . . Robot Hit Streak 10 | . 6 . . 10 Robot Miss Streak 2 | . 2 . . 1 Penetration Max . | . . . . . Secondary Targets . | . . . . . Shots Hit Robots 59 | . 9 . . 50 Core Hits 21 | . 3 . . 18 Critical Hits . | . . . . . Critical Kills . | . . . . . Critical Parts Destroyed . | . . . . . Melee Attacks . | . . . . . Impact . | . . . . . Slashing . | . . . . . Piercing . | . . . . . Sneak Attacks . | . . . . . Combat Hostiles . | . . . . . Follow-up Attacks . | . . . . . Damage Inflicted 757 | . 109 . . 648 Guns 753 | . 109 . . 644 Cannons . | . . . . . Explosions . | . . . . . Melee . | . . . . . Ramming 4 | . . . . 4 Kinetic 753 | . 109 . . 644 Thermal . | . . . . . Explosive . | . . . . . Electromagnetic . | . . . . . Impact . | . . . . . Slashing . | . . . . . Piercing . | . . . . . Highest Corruption . | . . . . . Average Corruption . | . . . . . Corruption Purged . | . . . . . Overload Shots . | . . . . . Overflow Damage . | . . . . . Projectiles . | . . . . . Explosions . | . . . . . Melee . | . . . . . Knockbacks . | . . . . . Impact . | . . . . . Kinetic . | . . . . . Secondary . | . . . . . Self-Inflicted Damage . | . . . . . Shots . | . . . . . Rammed 2 | . . . . 2 Targets Rammed 2 | . . . . 2 Kicked . | . . . . . Crushed . | . . . . . Highest Temperature 5 | . . . . 5 Average Temperature 5 | . . . . 5 Received Heat Transfer 247 | . . . . 247 Siege Activations . | . . . . . Robots Corrupted . | . . . . . Combat Hostiles . | . . . . . Parts Fried . | . . . . . Impact Corruptions . | . . . . . Robots Melted . | . . . . . Combat Hostiles . | . . . . . Parts Melted . | . . . . . Heat Transferred . | . . . . . Parts Sabotaged . | . . . . . Parts Stolen . | . . . . . Parts Stripped . | . . . . . Power Chain Reactions . | . . . . . Missiles Intercepted . | . . . . . Alert | -11 -10 -10 -10 -9 ------- Run | Scr Mat Min Exi Min Peak Influence 190 | . 70 23 . 190 Average Influence 78 | . 53 23 . 107 Maximum Alert Level . | . . . . . Low Security (%) 100 | 100 100 100 . 100 Level 1 . | . . . . . Level 2 . | . . . . . Level 3 . | . . . . . Level 4 . | . . . . . Level 5 . | . . . . . High Security . | . . . . . Max Security . | . . . . . Squads Dispatched . | . . . . . Investigation . | . . . . . Extermination . | . . . . . Reinforcement . | . . . . . Assault . | . . . . . Garrison . | . . . . . Intercept . | . . . . . Construction Impeded . | . . . . . Haulers Reinforced . | . . . . . Stealth | -11 -10 -10 -10 -9 --------- Run | Scr Mat Min Exi Min Distress Signals 1 | . 1 . . . Communications Jammed . | . . . . . Distress Signals . | . . . . . Times Spotted 32 | . 5 . . 27 Peak Tracking Total 19 | . 3 . . 19 Tactical Retreats 2 | . 1 . . 1 Traps | -11 -10 -10 -10 -9 ------- Run | Scr Mat Min Exi Min Traps Triggered . | . . . . . Indirectly . | . . . . . Trap Hack Attempts . | . . . . . Triggered . | . . . . . Disarmed . | . . . . . Reprogrammed . | . . . . . Reused . | . . . . . Traps Extracted . | . . . . . Installed . | . . . . . Triggered . | . . . . . Machines | -11 -10 -10 -10 -9 ---------- Run | Scr Mat Min Exi Min Machines Disabled . | . . . . . Max in Single Turn . | . . . . . Machines Sabotaged . | . . . . . Garrisons Compromised . | . . . . . Overloaded Fab Kills . | . . . . . Fab Network Shutdowns . | . . . . . Hacking | -11 -10 -10 -10 -9 --------- Run | Scr Mat Min Exi Min Machines Accessed . | . . . . . Terminals . | . . . . . Fabricators . | . . . . . Repair Stations . | . . . . . Recycling Units . | . . . . . Scanalyzers . | . . . . . Garrison Access . | . . . . . Total Hacks . | . . . . . Successful . | . . . . . Failed . | . . . . . Catastrophic . | . . . . . Database Lockouts . | . . . . . Manual . | . . . . . Terminals . | . . . . . Fabricators . | . . . . . Repair Stations . | . . . . . Recycling Units . | . . . . . Scanalyzers . | . . . . . Garrison Access . | . . . . . Terminal Hacks . | . . . . . Fabricator Hacks . | . . . . . Repair Station Hacks . | . . . . . Recycling Unit Hacks . | . . . . . Scanalyzer . | . . . . . Garrison Access Hacks . | . . . . . Unauthorized Hacks . | . . . . . Terminals . | . . . . . Fabricators . | . . . . . Repair Stations . | . . . . . Recycling Units . | . . . . . Scanalyzers . | . . . . . Garrison Access . | . . . . . Data Cores Recovered . | . . . . . Used . | . . . . . Hacking Detections . | . . . . . Full Trace Events . | . . . . . Feedback Events . | . . . . . Feedback Blocked . | . . . . . Robot Schematics Acquired . | . . . . . Robots Built . | . . . . . Matter . | . . . . . Time . | . . . . . Total Robot Build Rating . | . . . . . Part Schematics Acquired . | . . . . . Parts Built . | . . . . . Matter . | . . . . . Time . | . . . . . Total Part Build Rating . | . . . . . Parts Repaired . | . . . . . Time . | . . . . . Parts Recycled . | . . . . . Recycled Matter . | . . . . . Retrieved Matter . | . . . . . Retrieved Components . | . . . . . Parts Scanalyzed . | . . . . . Part Schematics Acquired . | . . . . . Parts Damaged . | . . . . . Bothacking | -11 -10 -10 -10 -9 ------------ Run | Scr Mat Min Exi Min Used RIF Installer . | . . . . . Robots Hacked . | . . . . . Non-combat . | . . . . . Combat . | . . . . . Robot Hacks Applied . | . . . . . Relay Couplers Released . | . . . . . Robots Rewired . | . . . . . Allies Hacked . | . . . . . Hacks Repelled . | . . . . . Allies | -11 -10 -10 -10 -9 -------- Run | Scr Mat Min Exi Min Total Allies 1 | . . . . 1 Largest Group 1 | . . . . 1 Highest-Rated Group 31 | . . . . 31 Highest-Rated Ally 31 | . . . . 31 Total Orders . | . . . . . Ally Attacks 2 | . . . . 2 Total Damage 22 | . . . . 22 Kills 1 | . . . . 1 Allies Corrupted . | . . . . . Allies Melted . | . . . . . Intel | -11 -10 -10 -10 -9 ------- Run | Scr Mat Min Exi Min Robot Analysis Total . | . . . . . Derelict Logs Recovered 2 | . . 1 . 1 Drone Launches . | . . . . . Drone Recoveries . | . . . . . Exploration | -11 -10 -10 -10 -9 ------------- Run | Scr Mat Min Exi Min Turns Passed 882 | 58 214 69 69 472 Spaces Moved 453 | 37 117 44 44 211 Core 4 | 4 . . . . Treads 449 | 33 117 44 44 211 Legs . | . . . . . Wheels . | . . . . . Hover . | . . . . . Flight . | . . . . . Fastest Speed 50 | 50 160 160 160 160 Average Speed 159 | 148 160 160 160 160 Slowest Speed 160 | 160 160 160 160 160 Overloaded Moves . | . . . . . Propulsion Burnouts . | . . . . . Robots Hopped . | . . . . . Cave-ins Triggered . | . . . . . Exploration Rate (%) 15 | 3 21 12 8 32 Regions Visited 4 Branch Regions 3 Pre-discovered Areas . | . . . . . Known Exits Taken 3 | . 1 1 1 . Unknown Exits Taken 1 | 1 . . . . Scrap Searched 3 | . . 1 . 2 Spaces Dug . | . . . . . Terrain Destroyed . | . . . . . Melee . | . . . . . Projectile . | . . . . . AOE . | . . . . . Actions | -11 -10 -10 -10 -9 --------- Run | Scr Mat Min Exi Min Total 543 | 39 130 43 43 288 Wait 3 | . . . . 3 Move 449 | 36 116 43 43 211 Hop . | . . . . . Pick Up 5 | . . . . 5 Fast Attach 7 | 3 1 . . 3 Attach . | . . . . . Detach . | . . . . . Swap 1 | . . . . 1 Drop 3 | . . . . 3 Fire 71 | . 13 . . 58 Melee . | . . . . . Ram . | . . . . . Kick . | . . . . . Crush 2 | . . . . 2 Escape Stasis . | . . . . . Rewire . | . . . . . Trap . | . . . . . Miscellaneous 2 | . . . . 2 Route ------- -11/Scrapyard -10/Materials -10/Mines -10/Exiles -9/Mines (discovered 1 exit: [*Mat]) History --------- Turn | Location | Event 14 | -11/Scrapyard | Discovered new exit (range 15) 59 | -11/Scrapyard | Entered Materials 249 | -10/Materials | Discovered new exit (range 15) 271 | -10/Materials | Identified exit to Mines 273 | -10/Materials | Entered Mines 285 | -10/Mines | Learned Materials terminal intel 313 | -10/Mines | Build established: Mutant 331 | -10/Mines | Deemed a non-threat by the Exiles lab entrance 333 | -10/Mines | Discovered new exit (range 5) 339 | -10/Mines | Identified exit to Exiles 342 | -10/Mines | Entered Exiles 342 | -10/Exiles | Found Exiles lab destroyed 382 | -10/Exiles | Discovered new exit (range 15) 410 | -10/Exiles | Identified exit to Mines 411 | -10/Exiles | Entered Mines 413 | -9/Mines | Reached level 2 418 | -9/Mines | Met a Derelict bent on vengeance 480 | -9/Mines | Discovered new exit (range 9) 485 | -9/Mines | Learned location of 2 exits from Materials 490 | -9/Mines | Core integrity fell below 50% 516 | -9/Mines | Upgraded with Utility slot (x3) 589 | -9/Mines | Reached level 3 598 | -9/Mines | Core integrity fell below 20% 839 | -9/Mines | Received a Mining Laser from a helpful Derelict 853 | -9/Mines | Assembled infested the area 883 | -9/Mines | Destroyed by as-56562 with Assembled Rifle Last Messages --------------- 00837_ A derelict emerges from the shadows: "What are you doing alone down here?" 00839_ 50-NCA(g): "And why aren't you carrying a mining laser?! Certainly you don't want THEM to uncover you when the ceiling comes crashing down? Here, take my spare." 00845_ 50-NCA(g): "You're apparently new around these parts, I'll cover you." 00847_ Searching scrap... 00847_ Found 46 Matter. 00847_ Found Spread Laser. 00847_ Found EM Shotgun. 00847_ Found Imp. Hover Unit. 00848_ Acquired 2 matter. 00851_ 50-NCA(g): "Mining lasers are a lot more useful than you might think..." 00853_ ALERT: Infestation in the mines, dispatching Demolisher response squad. 00857_ as-55500 destroyed. 00865_ 50-NCA(g) knocked back. 00868_ Acquired 9 matter. Map ----- +----------------------------------------------------+ | ?????????????????????????????????# #???????????# | | ?????????????????????????????????# #???####???## | | ?????????????????????????????????# #??## ### ## | | ?????????????????????????????????# #?## ## | | ???????????????????????????????### ### #???# | | ??????????????????????????????## =%## #????# | | ??????????????????????????????# == #?????# | | ???????? ?????????????????????# #### #?????# | | ?????? ???????????????? ???## ##????# | | ?????? ?????????????# #### ?????# ##???# | | ??????? % #?????????????????# ??#### ##??# | | ???????? #????????????????## ???# #??## | | ????????# ???????????????## ??# ### ##???? | | ????????# ???????????????# ## #?# ###????? | | ????????# ?????????????# #?#%#??????? | | ????????# ????????????# ###%#?# #??????? | | ????????# ???????????# ?????#=#?# #???#### | | ?????????# ???????????? ??????# #?# #??## # | | ??????????# ??????????? ??????# #?# #?## | | ???????????# ####????????? ???????# #?# ### | | ????????????# #?????????????????# #?# ##* | | ????????????### #??????????????#### #?# %!%| % | | ??????????????### #??????????????# * #?##### | | ????????????????#=#############??#!####?????### # | | ????????????????#%a aa a #??#[##?????????# # | | ????????????????#[ aaaa @ #### ##????????# # | | ????????????????######a#####t k #????????# # | | ?????????????????????# #???# ### ##??????? | | ?????????????????????# #???# ### #?????? | | ?????????????????????# ???# #?????? | | ????????????????????? ???# ##????? < | | ????????????????????? | ??###########?????# | | ????????????????????? ??????????????????####### | | ????????????????????? ????????????????????????? | | ???????????????????? #???????????????????????? | | ???????????????????? ##???????????????????????? | | ????????????????????####?????????????????????????? | | ?????????????????????????????????????????????????? | | | | | | | | | | | | | | | | | | | | | | | | | +----------------------------------------------------+ Best States ------------- Heat Dissipation 49 Energy Generation 10 Energy Capacity 250 Matter Stores 300 Matter Capacity 300 Sight Range 16 Terrain Scan Density 10 Resistance: KI 20 Resistance: TH 20 Resistance: EX 20 Resistance: EM 20 Resistance: I 20 Resistance: S 20 Resistance: P 20 Evasion (%) 40 Recoil Reduction 1 Offensive Hacking 10 Item Schematics ----------------- None Robot Schematics ------------------ None Fabricated ------------ Nothing Alien Tech Used ----------------- None Achievements -------------- None Challenges ------------ None RPGLIKE | -11 -10 -10 -10 -9 --------- Run | Scr Mat Min Exi Min Levels Raised 2 | . . . . 2 XP Earned 7493 | 4000 350 500 200 2443 XP Spent 4900 | . . . . 4900 Upgrades 7 | . . . . 7 Utility Slot 3 | . . . . 3 Inventory Capacity 4 | . . . . 4 Protomatter Created 123 | . . . . 123 Integrity Restored 48 | . . . . 48 Core 48 | . . . . 48 Protomatter Decayed 88 | . . . . 88 Game ------ Seed BombardmentLayeredShielding Manual? 0 Play Time 00:12:36 Cumulative 30.2 hours Start 2020.01.01 @ 02:59:41 End 2020.01.02 @ 19:29:00 Sessions 3 Manual Loads 0 Difficulty Adventurer Special Mode Winter2019/RPGLIKE Game No. 11 Rogue 0 Adventurer 3 Explorer 8 Win Type - Total 0 Types 0/0/0/0/0/0/0 Lore% 20 Gallery% 25 Achievement% 21 Wizard Run 0 Options --------- ASCII 0 Keyboard 1 Movement Arrows Keybinds 0 Fullscreen 1 Font 24/Smallcaps Map View 76x50 Tactical HUD 1 Map Filters NONE Filters NONE Steam 1 RUN: 2e6d5875-4c44-47fb-aebf-0fb485eadb03